bitfinex/quotes_BTCUSD_20250226
["timestamp","ask_amount","ask_price","bid_price","bid_amount"]
[1740582741457,0.00039709,88652.0,88651.0,0.99055699]
[1740582741687,0.00039709,88652.0,88651.0,2.37680946]
[1740582742479,0.16959709,88652.0,88651.0,1.50040946]
[1740582742729,0.16959709,88652.0,88651.0,0.00040946]
[1740582742880,0.169239,88632.0,88628.0,0.02]
[1740582743102,0.169239,88632.0,88622.0,0.0198]
[1740582743103,0.169252,88625.0,88624.0,0.02]
[1740582743304,0.169256,88623.0,88622.0,1.5]
[1740582743701,0.169258,88622.0,88621.0,0.02]
[1740582743914,0.0831,88623.0,88622.0,0.0198]
[1740582744106,0.169258,88622.0,88621.0,0.02]
[1740582744306,0.252356,88623.0,88622.0,0.0198]
[1740582744647,0.0831,88623.0,88622.0,0.0398]
[1740582745033,0.252356,88623.0,88622.0,0.0398]
[1740582745172,0.04739709,88652.0,88610.0,0.3]
[1740582745173,0.0753,88641.0,88628.0,0.02]
[1740582745379,0.00039709,88652.0,88651.0,0.209002]
[1740582745580,0.00039709,88652.0,88651.0,1.0044862]
[1740582745806,0.00039709,88652.0,88651.0,1.00290753]
[1740582746007,0.00039709,88652.0,88651.0,1.17210953]
[1740582746247,0.00039709,88652.0,88651.0,1.19534343]
[1740582746869,0.00039709,88652.0,88651.0,1.19929135]
[1740582747205,0.00039709,88652.0,88651.0,1.19645435]
[1740582747430,0.00039709,88652.0,88651.0,1.21455427]
[1740582747671,0.00039709,88652.0,88651.0,1.19455427]
[1740582747886,0.00039709,88652.0,88651.0,1.21455427]
[1740582748111,0.00039709,88652.0,88651.0,1.19455427]
[1740582748572,0.00039709,88652.0,88651.0,1.22454742]
[1740582748774,0.00039709,88652.0,88651.0,1.73730742]
[1740582749214,0.00039709,88652.0,88651.0,1.75730742]
[1740582749409,0.00039709,88652.0,88651.0,1.73730742]
[1740582749807,0.01907709,88678.0,88677.0,0.02]
[1740582750049,0.0004228,88679.0,88678.0,0.02]
[1740582750687,0.1695718,88679.0,88678.0,1.816963]
[1740582750997,0.0004228,88679.0,88678.0,1.836963]
[1740582751334,0.0004228,88679.0,88678.0,2.65687122]
[1740582751774,0.0004228,88679.0,88678.0,2.40692259]
[1740582752015,0.0004228,88679.0,88678.0,2.68982112]
[1740582752402,0.0004228,88679.0,88678.0,2.52067012]
[1740582752635,0.0004228,88679.0,88678.0,2.68982112]
[1740582752836,0.0004228,88679.0,88678.0,2.52067012]
[1740582753058,0.0004228,88679.0,88678.0,2.68982112]
[1740582753261,0.0004228,88679.0,88678.0,2.40692259]
[1740582753631,0.0004228,88679.0,88678.0,2.68982112]
[1740582754809,0.0004228,88679.0,88678.0,2.54359514]
[1740582755017,0.0004228,88679.0,88678.0,2.00699514]
[1740582755217,0.0004228,88679.0,88678.0,1.90600761]
[1740582755430,0.0004228,88679.0,88678.0,2.07515861]
[1740582755630,0.0004228,88679.0,88678.0,2.72550614]
[1740582755805,0.0004228,88679.0,88678.0,3.05060614]
[1740582756032,0.0004228,88679.0,88678.0,3.07060614]
[1740582756238,0.0002,88689.0,88688.0,0.686095]
[1740582756431,0.0002,88689.0,88688.0,1.65644253]
[1740582756908,0.0461,88722.0,88699.0,0.489111]
[1740582757123,0.0461,88722.0,88699.0,2.63642153]
[1740582757326,0.225426,88721.0,88714.0,0.02]
[1740582757460,0.225437,88717.0,88713.0,0.016963]
[1740582757657,0.225455,88710.0,88704.0,0.016963]
[1740582757864,0.169096,88707.0,88706.0,0.036963]
[1740582758106,0.169096,88707.0,88706.0,0.016963]
[1740582758314,0.0461,88722.0,88710.0,0.036963]
[1740582758514,0.0461,88722.0,88714.0,0.016963]
[1740582758737,0.0461,88722.0,88701.0,0.5366]
[1740582758738,0.16915,88715.0,88701.0,0.5366]
[1740582758936,0.169096,88707.0,88706.0,0.00919484]
[1740582759135,0.16915,88715.0,88714.0,0.05233669]
[1740582759755,7e-05,88715.0,88714.0,0.05233669]
[1740582759933,0.16915,88715.0,88714.0,0.05233669]
[1740582760135,7e-05,88715.0,88714.0,0.05233669]
[1740582760335,0.16915,88715.0,88714.0,0.05223669]
[1740582760654,0.16915,88715.0,88714.0,0.06143153]
[1740582761240,0.24725,88715.0,88714.0,0.06143153]
[1740582761505,0.07817,88715.0,88713.0,6.4e-07]
[1740582761708,0.169105,88702.0,88701.0,0.00040984]
[1740582762394,0.20612689,88704.0,88701.0,0.00040984]
[1740582762548,0.22306107,88702.0,88701.0,8.4e-07]
[1740582762753,0.22306107,88702.0,88652.0,0.03414032]
[1740582762754,0.02,88700.0,88652.0,0.03414032]
[1740582762952,0.0804,88685.0,88655.0,0.7]
[1740582763149,0.0804,88685.0,88652.0,0.03455044]
[1740582763150,0.169199,88653.0,88652.0,0.03455044]
[1740582763786,0.169199,88653.0,88652.0,0.00041012]
[1740582764158,0.18118531,88653.0,88652.0,0.00041012]
[1740582764420,0.0804,88662.0,88652.0,0.00041012]
[1740582764628,0.0804,88662.0,88653.0,0.225598]
[1740582764788,0.0804,88662.0,88654.0,0.00157886]
[1740582764987,0.0804,88662.0,88654.0,1.5]
[1740582765197,0.0454,88681.0,88655.0,0.11374753]
[1740582765397,0.05772144,88681.0,88656.0,0.00157868]
[1740582765894,0.09019013,88680.0,88652.0,0.00041012]
[1740582766089,0.169199,88653.0,88652.0,0.00041012]
[1740582766502,0.218199,88653.0,88652.0,0.00041012]
[1740582766882,0.049,88653.0,88652.0,0.00041012]
[1740582767097,0.0475,88673.0,88652.0,0.00041012]
[1740582767845,0.225552,88671.0,88652.0,0.00041012]
[1740582768173,0.0475,88673.0,88653.0,0.00157897]
[1740582768501,0.0475,88673.0,88652.0,0.00041012]
[1740582768502,0.169199,88653.0,88652.0,0.00041012]
[1740582770279,0.169199,88653.0,88652.0,0.02298145]
[1740582770915,0.169199,88653.0,88652.0,1.52298145]
[1740582772169,0.169199,88653.0,88652.0,0.03308947]
[1740582772371,0.14372914,88653.0,88652.0,0.03308947]
[1740582772777,0.14372914,88653.0,88652.0,0.03393447]
[1740582772926,0.14372914,88653.0,88652.0,0.04753066]
[1740582773177,0.19102914,88653.0,88652.0,0.04753066]
[1740582773354,0.169204,88650.0,88647.0,0.00444805]
[1740582773556,0.169204,88650.0,88649.0,0.00125578]
[1740582773969,0.169204,88650.0,88649.0,0.01253584]
[1740582774288,0.169204,88650.0,88649.0,0.01607375]
[1740582774714,0.169204,88650.0,88649.0,1.51607375]
[1740582775525,0.1305,88653.0,88649.0,1.51607375]
[1740582775674,0.225558,88669.0,88649.0,0.01607375]
[1740582775675,0.0767,88669.0,88649.0,0.01607375]
[1740582775881,0.161204,88650.0,88649.0,0.01607375]
[1740582776065,0.169204,88650.0,88649.0,0.02955375]
[1740582776266,0.169204,88650.0,88649.0,0.00479369]
[1740582777651,0.169204,88650.0,88649.0,0.01607778]
[1740582777854,0.0491,88675.0,88649.0,0.01607778]
[1740582778038,0.169204,88650.0,88649.0,0.01607778]
[1740582778242,0.22558,88660.0,88649.0,0.01607778]
[1740582778453,0.169204,88650.0,88649.0,0.01607778]
[1740582779060,0.22558,88660.0,88649.0,0.01253987]
[1740582779264,0.225519,88685.0,88649.0,0.01253987]
[1740582779557,0.00832177,88677.0,88649.0,0.01253987]
[1740582779775,0.169204,88650.0,88649.0,0.01253987]
[1740582779978,0.169204,88650.0,88649.0,0.00125578]
[1740582780394,0.17764887,88650.0,88649.0,0.00125578]
[1740582780603,0.19764887,88650.0,88649.0,0.00125578]
[1740582780828,0.02,88648.0,88613.0,0.09497663]
[1740582781039,0.169273,88614.0,88613.0,0.09497663]
[1740582781217,0.169273,88614.0,88613.0,0.09538769]
[1740582781456,0.169298,88601.0,88567.0,0.033946]
[1740582781638,0.169298,88601.0,88574.0,0.7]
[1740582781882,0.169298,88601.0,88575.0,0.0015804]
[1740582782094,0.00041124,88614.0,88575.0,0.0015804]
[1740582782333,0.00041124,88614.0,88600.0,0.00357967]
[1740582782538,0.00041124,88614.0,88600.0,0.01485247]
[1740582782711,0.00041124,88614.0,88613.0,0.25946513]
[1740582782942,0.00041124,88614.0,88613.0,0.96066535]
[1740582783607,0.0451,88665.0,88614.0,0.3]
[1740582783608,0.00116071,88645.0,88614.0,0.3]
[1740582783817,0.00116071,88645.0,88624.0,0.09019013]
[1740582783969,0.00116071,88645.0,88644.0,0.169216]
[1740582784181,0.00834214,88669.0,88635.0,0.3]
[1740582784374,0.00834214,88669.0,88648.0,0.169207]
[1740582784624,0.00834214,88669.0,88644.0,0.09019013]
[1740582784625,0.169164,88671.0,88649.0,0.01348]
[1740582784804,0.225527,88681.0,88649.0,0.01348]
[1740582785004,0.225537,88677.0,88655.0,0.0180323]
[1740582785207,0.22554,88676.0,88655.0,0.01815478]
[1740582785533,0.169193,88656.0,88655.0,0.01815478]
[1740582785686,0.17750538,88656.0,88655.0,0.01815478]
[1740582785892,0.25380538,88656.0,88655.0,0.01815478]
[1740582786117,0.08461238,88656.0,88655.0,0.01139528]
[1740582786254,0.0763,88677.0,88655.0,0.01139528]
[1740582786453,0.0763,88677.0,88655.0,0.01135528]
[1740582787246,0.03720953,88696.0,88655.0,0.01135528]
[1740582787406,0.03720953,88696.0,88665.0,0.02]
[1740582787605,0.04952817,88696.0,88665.0,0.02]
[1740582787805,0.04952817,88696.0,88664.0,0.02]
[1740582787806,0.00864348,88685.0,88668.0,0.02]
[1740582787983,0.00864348,88685.0,88665.0,0.02]
[1740582788186,0.00864348,88685.0,88666.0,0.00353638]
[1740582788387,0.169172,88667.0,88666.0,0.00353638]
[1740582789015,0.169172,88667.0,88666.0,0.01480918]
[1740582790027,0.225547,88674.0,88656.0,0.00353638]
[1740582790229,0.0757,88680.0,88656.0,0.00353638]
[1740582790431,0.169191,88657.0,88656.0,0.00353638]
[1740582791577,0.169191,88657.0,88656.0,0.0112728]
[1740582792483,0.169212,88646.0,88645.0,0.00353638]
[1740582792688,0.0475,88659.0,88645.0,0.00353638]
[1740582792689,0.169202,88651.0,88650.0,6.244182]
[1740582792884,0.245602,88651.0,88650.0,5.665506]
[1740582793097,0.545602,88651.0,88650.0,4.60766545]
[1740582793299,0.575298,88651.0,88650.0,4.05554784]
[1740582793513,0.575298,88651.0,88650.0,1.5689104]
[1740582793729,0.575298,88651.0,88650.0,1.46338659]
[1740582793932,0.575298,88651.0,88650.0,1.34489659]
[1740582794153,0.575298,88651.0,88650.0,1.15195112]
[1740582794154,0.99778562,88651.0,88650.0,1.15195112]
[1740582794362,0.169202,88651.0,88650.0,1.15195112]
[1740582794535,0.00831265,88651.0,88650.0,1.15195112]
[1740582794736,0.17751465,88651.0,88650.0,1.15195112]
[1740582794943,0.169202,88651.0,88650.0,1.15195112]
[1740582796520,0.169202,88652.0,88650.0,1.15195112]
[1740582796723,0.10375013,88709.0,88650.0,1.15195112]
[1740582796724,0.169202,88651.0,88650.0,1.15195112]
[1740582797379,0.469202,88651.0,88650.0,1.15195112]
[1740582797608,0.991797,88651.0,88650.0,1.15195112]
[1740582797736,0.169273,88614.0,88606.0,0.25]
[1740582797931,0.169273,88614.0,88613.0,0.00096823]
[1740582798431,0.169271,88616.0,88613.0,0.00096823]
[1740582798637,0.169273,88614.0,88613.0,0.00096823]
[1740582798878,0.169269,88616.0,88613.0,0.00096823]
[1740582799093,0.3,88648.0,88613.0,0.00096823]
[1740582799315,0.00116021,88650.0,88613.0,0.00096823]
[1740582799316,0.3,88646.0,88613.0,0.00096823]
[1740582799487,0.00116021,88650.0,88613.0,0.00096823]
[1740582799488,0.09019013,88643.0,88613.0,0.00096823]
[1740582799693,0.225624,88643.0,88613.0,0.00096823]
[1740582799919,0.00116021,88650.0,88613.0,0.00096823]
[1740582799920,0.3,88648.0,88613.0,0.00096823]
[1740582800123,1.074147,88647.0,88613.0,0.00096823]
[1740582800331,0.09019013,88643.0,88613.0,0.00096823]
[1740582800545,0.169273,88614.0,88613.0,0.00096823]
[1740582800762,0.3293,88641.0,88613.0,0.00096823]
[1740582800971,0.169273,88614.0,88613.0,0.00096823]
[1740582802047,0.326547,88614.0,88613.0,0.00096823]
[1740582802279,0.657943,88614.0,88613.0,0.00096823]
[1740582802488,0.576501,88614.0,88613.0,0.00096823]
[1740582802690,0.469273,88614.0,88613.0,0.00096823]
[1740582802900,0.762751,88614.0,88613.0,0.00096823]
[1740582803113,0.762751,88614.0,88613.0,2.3e-07]
[1740582803301,0.469273,88614.0,88613.0,2.3e-07]
[1740582803553,0.58312996,88614.0,88613.0,2.3e-07]
[1740582803730,0.469273,88614.0,88613.0,2.3e-07]
[1740582803939,0.798573,88614.0,88613.0,2.3e-07]
[1740582804150,0.80167153,88614.0,88613.0,2.3e-07]
[1740582804355,0.82527399,88614.0,88613.0,2.3e-07]
[1740582804547,2.35543095,88614.0,88613.0,2.3e-07]
[1740582804957,2.214873,88614.0,88613.0,2.3e-07]
[1740582805330,2.24157399,88614.0,88613.0,2.3e-07]
[1740582805532,0.469298,88601.0,88551.0,0.0002]
[1740582805733,3.79928848,88601.0,88600.0,2.4e-07]
[1740582805915,0.469298,88601.0,88600.0,2.4e-07]
[1740582806123,0.63972271,88601.0,88600.0,2.4e-07]
[1740582806330,0.60985595,88601.0,88600.0,2.4e-07]
[1740582806527,0.482738,88601.0,88600.0,2.4e-07]
[1740582806751,0.798598,88601.0,88600.0,2.4e-07]
[1740582807550,0.169298,88601.0,88600.0,2.4e-07]
[1740582807764,0.00116021,88613.0,88600.0,2.4e-07]
[1740582807963,0.169298,88601.0,88600.0,2.4e-07]
[1740582808364,0.26477803,88649.0,88600.0,2.4e-07]
[1740582808658,0.00116077,88627.0,88601.0,0.0825]
[1740582808868,0.03379993,88663.0,88623.0,0.36111879]
[1740582809078,0.03379993,88663.0,88633.0,0.0814]
[1740582809492,0.169228,88638.0,88633.0,0.0814]
[1740582809690,0.36377803,88672.0,88633.0,0.0814]
[1740582809894,0.169204,88650.0,88635.0,0.0458]
[1740582810104,0.8663,88706.0,88635.0,0.0458]
[1740582810304,1.27521,88694.0,88643.0,0.36111879]
[1740582810505,0.304539,88694.0,88653.0,0.36111879]
[1740582810707,0.673703,88694.0,88653.0,0.36111879]
[1740582811053,0.3,88693.0,88653.0,0.36111879]
[1740582811254,0.183927,88692.0,88653.0,0.36111879]
[1740582811548,0.00041224,88695.0,88659.0,0.11021963]
[1740582811720,0.169158,88675.0,88659.0,0.11021963]
[1740582811922,0.169146,88681.0,88661.0,0.01454085]
[1740582812146,0.00041224,88695.0,88661.0,0.01454085]
[1740582812347,0.00041224,88695.0,88659.0,0.09021963]
[1740582812547,0.169155,88676.0,88659.0,0.11021963]
[1740582812779,0.169153,88677.0,88660.0,1.51454085]
[1740582812983,0.225537,88677.0,88674.0,0.07533706]
[1740582813301,0.169157,88675.0,88674.0,0.07533706]
[1740582813550,0.169155,88677.0,88674.0,0.07533706]
[1740582813746,0.00041224,88695.0,88674.0,0.07533706]
[1740582813947,0.169157,88675.0,88674.0,0.07533706]
[1740582814154,0.46051432,88694.0,88656.0,0.25]
[1740582814155,0.3,88694.0,88656.0,0.25]
[1740582814352,0.169191,88657.0,88656.0,0.25]
[1740582814771,0.225624,88643.0,88637.0,0.0829]
[1740582814985,0.169214,88645.0,88637.0,0.0829]
[1740582815206,0.0134,88690.0,88637.0,0.0829]
[1740582815207,0.3,88675.0,88637.0,0.0829]
[1740582815568,0.3,88671.0,88637.0,0.0829]
[1740582815774,0.3,88669.0,88637.0,0.0829]
[1740582815982,0.225565,88666.0,88637.0,0.0829]
[1740582816299,0.169227,88638.0,88637.0,0.0829]
[1740582816512,0.3,88675.0,88637.0,0.0829]
[1740582816714,0.169227,88638.0,88637.0,0.0829]
[1740582816868,0.3,88664.0,88624.0,0.0794]
[1740582817054,0.169239,88632.0,88624.0,0.0794]
[1740582817260,0.3,88662.0,88624.0,0.0794]
[1740582817482,0.169252,88625.0,88624.0,0.0794]
[1740582817679,0.169269,88616.0,88615.0,0.0461]
[1740582818104,0.169287,88607.0,88603.0,0.25]
[1740582818307,0.36636803,88661.0,88603.0,0.25]
[1740582818308,0.169292,88604.0,88603.0,0.25]
[1740582818505,0.3,88643.0,88594.0,0.0463]
[1740582818761,0.29873003,88644.0,88594.0,0.0463]
[1740582818762,0.00041147,88604.0,88595.0,0.09021963]
[1740582818910,0.00041147,88604.0,88595.0,0.11021963]
[1740582819378,0.00041147,88604.0,88603.0,0.02]
[1740582819649,0.00041147,88604.0,88603.0,0.27]
[1740582820412,0.00041147,88604.0,88603.0,0.25]
[1740582820758,0.00041147,88604.0,88603.0,0.02]
[1740582821267,0.00041147,88604.0,88601.0,0.0779]
[1740582821471,0.00041147,88604.0,88603.0,0.05454085]
[1740582821709,0.0965,88682.0,88617.0,0.02]
[1740582821710,0.26477803,88672.0,88617.0,0.02]
[1740582821839,0.3,88665.0,88617.0,0.00012273]
[1740582822049,0.169265,88618.0,88617.0,0.00012273]
[1740582822448,0.3,88648.0,88617.0,0.00012273]
[1740582822449,0.225631,88640.0,88617.0,0.00012273]
[1740582822677,0.15151234,88729.0,88617.0,0.00012273]
[1740582822678,0.169265,88618.0,88617.0,0.00012273]
[1740582823224,0.225672,88625.0,88601.0,0.078745]
[1740582823427,0.169296,88602.0,88601.0,0.00096773]
[1740582823788,0.3,88629.0,88586.0,0.0967]
[1740582824032,0.3,88627.0,88594.0,0.04671147]
[1740582824341,0.169309,88595.0,88594.0,0.04671147]
[1740582824478,0.169309,88595.0,88594.0,0.00041147]
[1740582824680,0.44828,88595.0,88594.0,0.00041147]
[1740582824906,0.360995,88595.0,88594.0,0.00041147]
[1740582825479,0.191686,88595.0,88574.0,0.079]
[1740582825682,0.00041162,88595.0,88574.0,0.079]
[1740582825858,0.169348,88575.0,88574.0,0.079]
[1740582826284,0.00041162,88595.0,88574.0,0.079]
[1740582826438,0.169334,88582.0,88574.0,0.079]
[1740582826780,0.00041162,88595.0,88574.0,0.079]
[1740582826991,0.471819,88594.0,88574.0,0.079]
[1740582827222,0.00041162,88595.0,88574.0,0.079]
[1740582827662,0.209421,88594.0,88574.0,0.079]
[1740582827874,0.00041162,88595.0,88574.0,0.079]
[1740582828219,0.00041162,88595.0,88579.0,0.02]
[1740582828422,0.00041162,88595.0,88584.0,0.01454085]
[1740582828627,0.00041162,88595.0,88583.0,0.0468]
[1740582828824,0.169311,88594.0,88583.0,0.0468]
[1740582829004,0.00041162,88595.0,88583.0,0.0468]
[1740582829195,0.225748,88594.0,88583.0,0.0468]
[1740582829392,0.00041162,88595.0,88583.0,0.0468]
[1740582829750,0.00041162,88595.0,88593.0,0.09021963]
[1740582829950,0.26477803,88648.0,88609.0,0.02]
[1740582830177,0.26477803,88648.0,88609.0,0.02012278]
[1740582830361,1.009288,88647.0,88609.0,0.00012278]
[1740582830713,0.169281,88610.0,88609.0,0.00012278]
[1740582831059,0.3,88632.0,88609.0,0.00012278]
[1740582831060,0.28477803,88648.0,88609.0,0.00012278]
[1740582831259,0.169281,88610.0,88609.0,0.00012278]
[1740582831452,0.3,88628.0,88609.0,0.00012278]
[1740582831642,0.26477803,88629.0,88609.0,0.00012278]
[1740582832002,0.22567,88625.0,88609.0,0.00012278]
[1740582832202,0.26477803,88629.0,88609.0,0.00012278]
[1740582832417,0.3,88642.0,88609.0,0.00012278]
[1740582832640,0.225647,88634.0,88609.0,0.00012278]
[1740582832851,0.3,88640.0,88609.0,0.00012278]
[1740582833044,0.01305811,88647.0,88613.0,0.09021963]
[1740582833249,0.01305811,88647.0,88623.0,0.0803]
[1740582833462,0.00115998,88656.0,88623.0,0.0803]
[1740582833731,0.00115998,88656.0,88628.0,0.02]
[1740582834188,0.033939,88678.0,88640.0,0.02]
[1740582834330,0.033939,88678.0,88631.0,0.09021963]
[1740582834331,0.02255436,88670.0,88623.0,0.1003]
[1740582834532,1.621621,88669.0,88623.0,0.0803]
[1740582834803,0.169242,88631.0,88623.0,0.0803]
[1740582834952,0.3,88669.0,88623.0,0.0803]
[1740582835307,0.3,88667.0,88623.0,0.0803]
[1740582835486,2.726857,88666.0,88623.0,0.08042278]
[1740582835698,0.169254,88624.0,88623.0,0.08042278]
[1740582836100,0.169254,88624.0,88623.0,0.00012278]
[1740582836600,1.105271,88624.0,88623.0,0.00012278]
[1740582836816,2.582835,88624.0,88623.0,0.00012278]
[1740582837003,2.033584,88624.0,88623.0,0.00012278]
[1740582837164,0.169254,88624.0,88623.0,0.00012278]
[1740582837362,0.293688,88624.0,88623.0,0.00012278]
[1740582838465,0.169254,88624.0,88623.0,0.00012278]
[1740582839676,0.307265,88624.0,88623.0,0.00012278]
[1740582840368,0.607265,88624.0,88623.0,7.8e-07]
[1740582840549,0.469254,88624.0,88623.0,7.8e-07]
[1740582840903,0.63620348,88624.0,88623.0,7.8e-07]
[1740582841105,0.57939262,88624.0,88623.0,7.8e-07]
[1740582841352,0.63620348,88624.0,88623.0,7.8e-07]
[1740582841558,0.66240663,88624.0,88623.0,7.8e-07]
[1740582841781,0.66240663,88624.0,88594.0,0.0008458]
[1740582841782,0.169309,88595.0,88594.0,9.1e-07]
[1740582841978,0.169309,88595.0,88594.0,7.6e-07]
[1740582841979,0.18236711,88595.0,88594.0,7.6e-07]
[1740582842358,0.48236711,88595.0,88594.0,7.6e-07]
[1740582842635,0.169357,88570.0,88569.0,6.5e-07]
[1740582842808,0.169357,88570.0,88562.0,0.0008478]
[1740582842809,0.16937,88563.0,88562.0,6e-07]
[1740582843031,0.46937,88563.0,88562.0,6e-07]
[1740582843272,0.16937,88563.0,88562.0,0.00041222]
[1740582843714,0.01305811,88570.0,88562.0,0.00041222]
[1740582843948,0.16937,88563.0,88562.0,0.00041222]
[1740582844148,0.92034,88563.0,88562.0,0.00041222]
[1740582844377,0.00453,88587.0,88563.0,0.0771]
[1740582844582,0.169369,88564.0,88563.0,0.0771]
[1740582844803,0.01305811,88592.0,88565.0,0.36119624]
[1740582845003,0.00115998,88597.0,88574.0,0.36119624]
[1740582845215,0.169331,88584.0,88574.0,0.36119624]
[1740582845423,0.16934,88580.0,88574.0,0.36119624]
[1740582845618,0.00115998,88610.0,88574.0,0.36119624]
[1740582845833,1.37034711,88609.0,88577.0,0.02]
[1740582846036,1.37034711,88609.0,88574.0,0.36119624]
[1740582846037,0.2157,88608.0,88585.0,0.38119624]
[1740582846207,0.169326,88586.0,88585.0,0.36119624]
[1740582846408,0.01305811,88609.0,88574.0,0.36119624]
[1740582846656,0.225785,88580.0,88568.0,0.00566659]
[1740582846866,0.01305811,88607.0,88577.0,0.02]
[1740582847016,0.01305811,88633.0,88598.0,0.02]
[1740582847220,0.00115998,88622.0,88599.0,0.0492]
[1740582847418,0.626717,88621.0,88599.0,0.04916]
[1740582847646,0.225685,88619.0,88599.0,0.04916]
[1740582847846,0.00115998,88622.0,88604.0,0.019]
[1740582847847,0.114018,88618.0,88604.0,0.019]
[1740582848187,0.169274,88614.0,88604.0,0.019]
[1740582848387,0.169277,88613.0,88604.0,0.01912297]
[1740582848518,0.16929,88605.0,88604.0,0.00012297]
[1740582848732,0.01305811,88633.0,88605.0,0.019]
[1740582848934,0.00115998,88642.0,88613.0,0.019]
[1740582848935,2.15238,88632.0,88613.0,0.019]
[1740582849164,0.169243,88630.0,88614.0,0.019]
[1740582849389,0.0004229,88646.0,88621.0,0.019]
[1740582849593,0.0004229,88646.0,88619.0,0.09028428]
[1740582849594,1.531499,88645.0,88624.0,0.019]
[1740582849798,0.0004229,88646.0,88636.0,0.019]
[1740582850000,0.0004229,88646.0,88645.0,0.019]
[1740582850400,0.0004229,88646.0,88645.0,0.0642]
[1740582850616,0.0004229,88646.0,88645.0,0.1409]
[1740582851015,0.0004229,88646.0,88645.0,0.14102297]
[1740582851219,0.0004229,88646.0,88645.0,0.15556382]
[1740582851418,0.0004229,88646.0,88645.0,0.14102297]
[1740582851993,0.1696349,88646.0,88645.0,0.12202297]
[1740582852227,0.1696349,88646.0,88645.0,0.07682297]
[1740582852431,0.5149279,88646.0,88645.0,0.00012297]
[1740582852601,2.82578601,88646.0,88645.0,9.7e-07]
[1740582852802,0.51245259,88646.0,88645.0,9.7e-07]
[1740582853022,0.169294,88603.0,88602.0,0.0791]
[1740582853218,0.169309,88595.0,88594.0,0.25404]
[1740582853417,0.965637,88595.0,88594.0,0.25404]
[1740582853615,0.965637,88595.0,88594.0,0.00404]
[1740582853616,1.281157,88595.0,88594.0,0.00404]
[1740582853848,3.078366,88595.0,88594.0,0.00416299]
[1740582854060,3.654607,88595.0,88594.0,9.9e-07]
[1740582854260,0.58316596,88595.0,88594.0,9.9e-07]
[1740582854812,0.58416596,88595.0,88594.0,9.9e-07]
[1740582854924,0.61292554,88595.0,88594.0,9.9e-07]
[1740582855131,1.50516365,88595.0,88594.0,9.9e-07]
[1740582855331,1.39130669,88595.0,88594.0,9.9e-07]
[1740582856865,0.51112669,88595.0,88594.0,9.9e-07]
[1740582857072,0.48336711,88595.0,88594.0,9.9e-07]
[1740582857271,0.51212669,88595.0,88594.0,9.9e-07]
[1740582857535,0.51212669,88595.0,88556.0,0.07935098]
[1740582857536,0.001,88586.0,88556.0,0.07935098]
[1740582857682,0.169391,88552.0,88533.0,0.02]
[1740582857864,0.169391,88552.0,88551.0,0.04891162]
[1740582858228,0.296054,88552.0,88551.0,0.04891162]
[1740582858402,0.169391,88552.0,88551.0,0.04891162]
[1740582858610,0.22496479,88582.0,88551.0,0.04891162]
[1740582858815,0.169391,88552.0,88551.0,0.04891162]
[1740582859462,0.169391,88552.0,88551.0,0.04841162]
[1740582859665,0.169391,88552.0,88551.0,0.00041162]
[1740582859666,1.145903,88552.0,88551.0,0.00041162]
[1740582859854,0.694112,88552.0,88551.0,0.00041162]
[1740582860056,0.169391,88552.0,88551.0,0.00041162]
[1740582860588,0.169391,88552.0,88551.0,0.07821162]
[1740582860794,0.16939,88553.0,88552.0,0.019]
[1740582860950,0.169391,88552.0,88551.0,0.09721162]
[1740582861300,0.01305811,88580.0,88552.0,0.019]
[1740582861450,0.01305811,88580.0,88551.0,0.07821162]
[1740582861451,0.181702,88579.0,88563.0,0.09028428]
[1740582861662,0.01305811,88580.0,88563.0,0.09028428]
[1740582861663,0.169369,88564.0,88563.0,0.09028428]
[1740582861872,0.01305811,88580.0,88563.0,0.09028428]
[1740582862070,0.169369,88564.0,88563.0,0.09028428]
[1740582862391,0.30115998,88601.0,88568.0,0.019]
[1740582862392,0.01348111,88595.0,88568.0,0.019]
[1740582862595,0.01348111,88595.0,88563.0,0.09028428]
[1740582862596,0.724721,88594.0,88564.0,0.019]
[1740582862943,0.169367,88565.0,88564.0,0.019]
[1740582863354,0.169388,88554.0,88553.0,0.13638428]
[1740582863549,0.01305811,88592.0,88557.0,0.019]
[1740582863829,0.169369,88564.0,88563.0,0.019]
[1740582864208,0.02933637,88591.0,88563.0,0.019]
[1740582864411,0.225822,88566.0,88563.0,0.019]
[1740582864588,0.16937,88563.0,88562.0,0.019]
[1740582864794,0.16937,88563.0,88553.0,0.13638428]
[1740582864795,0.169384,88556.0,88555.0,0.019]
[1740582864990,0.169388,88554.0,88553.0,0.15538428]
[1740582865190,0.0294246,88590.0,88553.0,0.15538428]
[1740582865414,0.169375,88561.0,88553.0,0.15538428]
[1740582865621,0.0294246,88586.0,88553.0,0.15538428]
[1740582865877,0.169388,88555.0,88553.0,0.15538428]
[1740582866200,0.0294246,88586.0,88553.0,0.15538428]
[1740582866201,0.01305811,88583.0,88566.0,0.019]
[1740582866402,0.01305811,88583.0,88553.0,0.13642428]
[1740582866403,0.01305811,88583.0,88568.0,0.019]
[1740582866511,0.01305811,88583.0,88553.0,0.13642428]
[1740582866512,0.133296,88582.0,88562.0,0.019]
[1740582866722,0.225782,88581.0,88557.0,0.019]
[1740582866915,0.225782,88581.0,88554.0,0.02]
[1740582866916,0.57829,88580.0,88554.0,0.019]
[1740582867116,0.169388,88554.0,88553.0,0.13642428]
[1740582867559,0.169388,88554.0,88553.0,0.04614]
[1740582867761,0.169388,88554.0,88553.0,0.04266129]
[1740582868166,0.169388,88554.0,88553.0,0.04270129]
[1740582868322,0.750777,88554.0,88553.0,8e-05]
[1740582868543,1.62996996,88554.0,88553.0,8e-05]
[1740582868742,2.00717007,88554.0,88553.0,8e-05]
[1740582868942,3.39448667,88554.0,88553.0,8e-05]
[1740582869170,3.24348767,88554.0,88553.0,0.00012]
[1740582869614,2.87132867,88554.0,88553.0,0.00012]
[1740582869812,2.84190407,88554.0,88553.0,0.00012]
[1740582869961,0.16942,88537.0,88536.0,0.07854542]
[1740582870156,0.54621542,88537.0,88536.0,0.07854542]
[1740582870369,0.16983142,88537.0,88536.0,0.07854542]
[1740582870585,0.169443,88525.0,88524.0,0.0008484]
[1740582870744,1.99092,88525.0,88524.0,0.0008484]
[1740582870943,1.764408,88525.0,88524.0,0.0008484]